bitfinex/quotes_ETHUSD_20250623
["timestamp","ask_amount","ask_price","bid_price","bid_amount"]
[1750721600788,0.14,2424.9,2424.3,0.9755]
[1750721601854,30.0,2424.8,2424.3,0.9755]
[1750721602054,0.14,2424.9,2424.3,0.9755]
[1750721602055,1.0713,2424.9,2424.3,0.9755]
[1750721602267,30.0,2424.8,2424.3,0.9755]
[1750721602470,13.10713,2424.7,2424.3,0.9755]
[1750721602659,11.0713,2424.9,2424.3,0.9755]
[1750721602902,10.0,2424.7,2424.3,0.9755]
[1750721603278,11.934,2424.8,2424.3,0.9755]
[1750721603805,0.14,2424.9,2424.3,0.9755]
[1750721605074,10.0,2424.7,2424.3,0.9755]
[1750721605284,14.19489481,2424.7,2424.3,0.9755]
[1750721605491,0.14,2424.9,2424.3,0.9755]
[1750721610527,10.0,2424.8,2424.3,0.9755]
[1750721610741,0.14,2424.9,2424.3,0.9755]
[1750721612152,10.0,2424.5,2423.4,0.9685]
[1750721612430,10.9212,2424.4,2423.9,0.9685]
[1750721612620,30.0,2424.1,2423.4,0.9685]
[1750721612820,10.0,2424.2,2423.4,0.9685]
[1750721613396,10.0,2424.0,2423.4,0.9685]
[1750721613837,0.14,2424.9,2424.0,1.4417]
[1750721614063,0.14,2424.9,2424.3,0.55]
[1750721614341,0.14,2424.9,2424.6,0.8917]
[1750721614707,0.14,2424.9,2424.7,0.55]
[1750721615228,0.14,2424.9,2424.8,1.4417]
[1750721615997,0.14,2424.9,2424.8,0.8917]
[1750721618040,0.14,2424.9,2424.5,0.9522]
[1750721621147,0.14,2424.9,2424.6,0.55]
[1750721621318,0.14,2424.9,2424.7,0.8915]
[1750721623640,0.14,2424.9,2424.8,13.16223828]
[1750721624007,0.14,2425.9,2425.3,0.9416]
[1750721624728,0.14,2425.9,2425.5,0.972]
[1750721629567,0.14,2425.9,2425.7,0.9028]
[1750721632148,0.14,2425.9,2425.8,1.4448]
[1750721634544,0.14,2425.9,2425.3,0.9336]
[1750721634931,0.14,2425.9,2425.5,0.8916]
[1750721635132,0.14,2425.9,2425.6,0.55]
[1750721635370,0.14,2425.9,2425.6,1.4416]
[1750721635570,0.14,2425.9,2425.8,0.55]
[1750721635740,0.14,2425.9,2425.8,1.4855]
[1750721635935,0.14,2425.9,2425.8,5.60785138]
[1750721636169,0.08383705,2425.9,2425.8,6.16863652]
[1750721637373,0.09,2426.9,2426.2,0.55]
[1750721637578,0.09,2426.9,2426.4,0.8992]
[1750721640873,0.09,2426.9,2426.5,8.954]
[1750721642780,0.09,2426.9,2426.6,0.9159]
[1750721643289,0.09,2426.9,2426.8,0.9159]
[1750721644283,0.09,2426.9,2426.8,1.4659]
[1750721644480,0.09,2426.9,2426.8,1.46]
[1750721645669,0.09,2426.9,2426.5,0.9697]
[1750721645981,0.09,2426.9,2426.5,7.9977]
[1750721646555,0.09,2426.9,2426.5,8.98957]
[1750721647158,0.09,2426.9,2426.5,8.01987]
[1750721647484,0.09,2426.9,2426.6,0.9697]
[1750721647873,0.09,2426.9,2426.7,7.027]
[1750721648078,0.9942,2426.9,2426.2,0.55]
[1750721648248,0.9942,2426.9,2426.3,8.947]
[1750721648448,0.9942,2426.9,2426.3,0.99167]
[1750721648687,0.9942,2426.9,2426.2,0.55]
[1750721648883,0.9942,2426.9,2426.3,8.947]
[1750721651093,10.0,2426.7,2426.1,0.9697]
[1750721651251,10.0,2426.7,2426.0,1.921]
[1750721651252,30.0,2426.8,2425.9,0.8708]
[1750721651451,30.0,2426.8,2426.0,7.024]
[1750721651774,0.8736,2426.8,2426.1,0.55]
[1750721651973,0.8736,2426.8,2426.0,7.024]
[1750721652179,0.8736,2426.8,2426.1,0.55]
[1750721653889,30.0,2426.7,2426.2,7.024]
[1750721654205,0.8736,2426.8,2426.2,7.024]
[1750721655489,0.8736,2426.8,2426.3,0.9091]
[1750721655997,0.09,2426.9,2426.3,0.9091]
[1750721655998,0.09,2426.9,2426.4,0.55]
[1750721657198,0.09,2426.9,2425.3,0.9046]
[1750721657199,10.0,2426.6,2425.3,0.9046]
[1750721657499,30.55,2426.7,2425.0,0.9046]
[1750721657500,10.0,2426.1,2425.0,0.9046]
[1750721657697,30.0,2425.8,2425.0,0.9046]
[1750721658002,11.921,2425.8,2425.0,0.9046]
[1750721658302,1.921,2425.8,2425.0,0.9046]
[1750721658503,2.7837,2426.0,2425.1,0.29761545]
[1750721658700,10.0,2425.9,2425.1,0.29761545]
[1750721658864,10.0,2425.9,2425.1,7.31861545]
[1750721659906,10.0,2425.9,2425.2,9.11790524]
[1750721660489,10.0,2425.8,2425.2,7.021]
[1750721660812,0.8627,2426.0,2425.2,7.021]
[1750721661022,30.0,2425.8,2425.0,0.9046]
[1750721661326,10.0,2425.7,2425.1,7.021]
[1750721661526,0.27847,2425.9,2425.1,7.021]
[1750721661833,30.0,2425.8,2425.1,7.021]
[1750721662309,30.0,2425.8,2425.0,0.9046]
[1750721662606,0.8627,2426.0,2425.0,1.46246312]
[1750721662809,0.8627,2426.0,2425.3,4.12314411]
[1750721663012,1.913,2426.1,2425.3,4.12314411]
[1750721663013,11.913,2426.1,2425.3,4.12314411]
[1750721663615,11.913,2426.4,2425.5,0.9278]
[1750721663781,1.913,2426.4,2425.6,7.02]
[1750721665480,10.0,2426.2,2425.6,7.02]
[1750721665886,1.913,2426.4,2425.6,7.02]
[1750721666225,10.0,2426.2,2425.6,7.86978]
[1750721666373,3.97607,2426.4,2425.6,7.86978]
[1750721668016,2.06307,2426.4,2425.6,7.86978]
[1750721668812,40.0,2426.3,2425.6,7.86978]
[1750721669012,2.06307,2426.4,2425.6,7.86978]
[1750721669262,1.292077,2426.3,2425.6,7.86978]
[1750721669436,40.0,2426.2,2425.5,0.9278]
[1750721669596,0.9406,2426.1,2425.5,0.9278]
[1750721669782,10.0,2425.9,2425.2,0.8497]
[1750721669982,2.8536,2426.1,2425.2,7.8687]
[1750721670303,30.0,2425.8,2425.2,7.8687]
[1750721670622,30.0,2425.8,2425.2,8.65557]
[1750721670779,30.0,2425.9,2425.2,8.65557]
[1750721670981,10.0,2426.0,2425.2,8.65557]
[1750721671423,10.0,2425.9,2425.2,8.65557]
[1750721671611,10.0,2425.8,2425.2,8.65557]
[1750721671924,10.0,2425.8,2425.3,0.865557]
[1750721672228,1.913,2426.0,2425.3,0.865557]
[1750721672426,10.0,2425.8,2425.3,0.865557]
[1750721672730,11.913,2426.0,2425.3,0.865557]
[1750721672896,10.9406,2426.1,2425.3,0.865557]
[1750721672897,2.8546,2426.1,2425.3,0.865557]
[1750721673086,10.28546,2426.0,2425.2,7.8677]
[1750721673911,10.0,2425.8,2425.2,7.8677]
[1750721674559,10.28546,2426.0,2425.2,7.8677]
[1750721674851,30.0,2425.9,2425.2,7.8677]
[1750721675005,10.28546,2426.0,2425.2,7.8677]
[1750721675208,10.28546,2426.0,2425.2,8.65447]
[1750721675209,2.19946,2426.0,2425.2,8.65447]
[1750721675455,10.0,2425.8,2425.2,8.65447]
[1750721675754,2.19946,2426.0,2425.2,8.65447]
[1750721675958,10.0,2425.8,2425.2,8.65447]
[1750721676308,2.19946,2426.0,2425.2,8.65447]
[1750721677010,0.314006,2425.9,2425.2,0.8497]
[1750721677211,40.0,2425.5,2424.4,0.8245]
[1750721677410,10.0,2425.2,2424.5,9.03602363]
[1750721677640,40.0,2425.3,2424.6,0.8245]
[1750721677814,30.0,2425.3,2424.6,0.8245]
[1750721678050,30.0,2425.3,2424.7,0.98605236]
[1750721678240,30.0,2425.3,2424.6,7.8405]
[1750721679337,10.0,2425.4,2424.7,0.7518]
[1750721679535,10.0,2425.5,2424.7,0.7518]
[1750721680115,11.914,2425.7,2424.9,0.7719]
[1750721680341,1.914,2425.7,2424.9,0.7719]
[1750721680550,0.8039,2425.8,2424.9,0.7719]
[1750721680851,10.8039,2425.8,2424.9,0.7719]
[1750721681055,10.8039,2425.8,2425.1,0.7957]
[1750721681247,9.774,2425.9,2425.1,0.7957]
[1750721681410,10.0,2425.8,2425.1,0.7957]
[1750721681615,11.914,2426.1,2425.1,0.7957]
[1750721682161,10.0,2426.1,2425.3,0.8126]
[1750721682355,10.0,2426.1,2425.2,0.55]
[1750721682356,11.4025777,2426.1,2425.4,7.8276]
[1750721683573,11.4025777,2426.1,2425.3,0.8315]
[1750721683727,10.0,2425.7,2424.9,7.015]
[1750721684067,30.0,2425.6,2425.0,0.8315]
[1750721684222,30.0,2425.6,2424.4,0.8315]
[1750721684223,30.7863,2425.0,2424.4,0.8315]
[1750721684466,30.0,2424.7,2424.1,0.9715]
[1750721684890,10.0,2424.9,2424.1,0.9715]
[1750721685406,10.0,2424.5,2424.1,0.9715]
[1750721685710,10.0,2424.7,2424.1,0.9715]
[1750721685871,10.0,2424.3,2424.1,0.9715]
[1750721686067,1.0,2424.7,2424.1,0.14]
[1750721686381,1.0,2424.7,2423.8,2.03523629]
[1750721686382,0.55,2423.4,2423.2,2.00216404]
[1750721686720,36.65862335,2423.2,2423.1,2.18285182]
[1750721687025,35.41665602,2423.2,2423.1,0.14]
[1750721687231,36.37995602,2423.2,2423.1,0.14]
[1750721687384,36.37995602,2423.2,2421.4,0.8315]
[1750721687385,0.4133,2422.8,2421.4,0.8315]
[1750721687586,40.0,2422.6,2421.4,0.8315]
[1750721687940,30.0,2422.5,2421.4,0.8315]
[1750721688073,40.0,2422.2,2421.4,0.8315]
[1750721688273,40.0,2422.2,2421.1,0.14]
[1750721688274,30.55,2422.2,2421.1,0.14]
[1750721688504,41.69347824,2422.2,2421.1,0.14]
[1750721688706,42.10677824,2422.2,2421.1,0.14]
[1750721688904,53.18540824,2422.2,2421.1,0.14]
[1750721689176,50.42093,2422.2,2421.1,0.14]
[1750721689376,50.00763,2422.2,2421.1,0.14]
[1750721689571,41.80783,2422.2,2421.1,0.14]
[1750721689797,42.6432,2422.2,2421.1,0.14]
[1750721690200,43.1932,2422.2,2421.1,0.14]
[1750721690880,53.1092,2422.2,2421.1,0.14]
[1750721691096,57.23767824,2422.2,2421.1,0.14]
[1750721693835,64.25567824,2422.2,2422.1,0.10016385]
[1750721694008,10.55,2421.8,2421.1,0.14]
[1750721694311,30.0,2421.3,2421.1,0.14]
[1750721694511,49.81473519,2421.2,2421.1,0.14]
[1750721694729,54.49491857,2421.2,2421.1,0.14]
[1750721694909,42.06273519,2421.2,2421.1,0.14]
[1750721695077,50.99373519,2421.2,2421.1,0.14]
[1750721695281,55.12391857,2421.2,2421.1,0.14]
[1750721695507,55.12491857,2421.2,2421.1,0.14]
[1750721696613,50.45173519,2421.2,2421.1,0.14]
[1750721697204,51.00173519,2421.2,2421.1,0.14]
[1750721697399,21.00173519,2421.2,2421.1,0.14]
[1750721697601,55.13191857,2421.2,2421.1,0.14]
[1750721698048,57.1564501,2421.2,2421.1,2e-08]
[1750721698204,40.0,2420.7,2420.1,0.14]
[1750721698402,10.0,2420.5,2420.1,0.14]
[1750721698635,40.0,2420.2,2420.1,0.14]
[1750721698805,47.023,2420.2,2420.1,0.14]
[1750721699138,48.937,2420.2,2420.1,0.14]
[1750721700231,49.82073519,2420.2,2420.1,0.14]
[1750721700541,0.55,2420.0,2418.1,0.9645]
[1750721700741,10.0,2419.7,2418.7,0.8245]
[1750721701034,10.0,2419.3,2418.7,0.8245]
[1750721701435,30.0,2419.2,2418.7,0.8245]
[1750721701955,10.55,2420.0,2418.7,0.8245]
[1750721702154,10.0,2419.8,2419.2,0.8158]
[1750721702300,30.0,2419.7,2419.2,0.8158]
[1750721702709,10.0,2419.7,2419.2,0.8158]
[1750721702909,10.0,2419.5,2419.2,0.8158]
[1750721703133,10.0,2419.7,2419.2,0.8158]
[1750721703402,10.0,2419.5,2419.2,0.8158]
[1750721703699,30.0,2419.6,2419.2,0.8158]
[1750721704029,0.55,2420.6,2419.2,0.8158]
[1750721704336,10.0,2419.8,2419.2,0.8158]
[1750721704918,7.042,2420.0,2419.2,0.8158]
[1750721705237,40.0,2419.9,2419.2,0.8158]
[1750721705441,7.042,2420.0,2419.2,0.8158]
[1750721705442,30.0,2419.7,2419.2,0.8158]
[1750721705603,10.0,2419.8,2419.2,0.8158]
[1750721705795,7.042,2420.0,2419.2,0.8158]
[1750721706195,30.0,2419.7,2419.2,0.8158]
[1750721706437,7.046,2419.7,2419.2,0.8158]
[1750721706642,0.8954,2420.0,2419.2,0.8158]
[1750721706825,7.86,2421.3,2419.3,0.55]
[1750721706826,30.0,2420.3,2419.3,0.55]
[1750721707000,10.0,2420.2,2419.4,0.8006]
[1750721707201,7.049,2420.2,2419.4,0.8006]
[1750721707426,7.049,2420.2,2419.6,0.7982]
[1750721707825,30.0,2420.1,2419.6,0.7982]
[1750721707999,10.0,2420.1,2419.6,0.7982]
[1750721709140,10.0,2420.5,2419.6,0.7982]
[1750721709308,50.0,2420.3,2419.6,0.7982]
[1750721709518,10.0,2420.7,2419.6,0.7982]
[1750721709718,30.0,2420.3,2419.7,0.55]
[1750721710028,30.0,2420.5,2419.8,0.7735]
[1750721710370,0.28331529,2420.4,2419.9,0.55]
[1750721710520,0.28331529,2420.4,2420.0,0.7735]
[1750721712367,30.0,2420.3,2420.0,0.7735]
[1750721713368,10.0,2420.2,2420.0,0.7735]
[1750721713732,30.0,2420.1,2420.0,0.7735]
[1750721714546,0.28331529,2420.4,2420.0,0.7735]
[1750721714886,30.0,2420.1,2420.0,0.7735]
[1750721715184,10.0,2420.2,2420.0,0.7735]
[1750721715349,10.0,2420.7,2420.0,0.7735]
[1750721715549,10.0,2420.3,2420.0,0.7735]
[1750721715746,30.0,2420.2,2420.0,0.7735]
[1750721716690,7.038,2420.5,2420.0,0.7735]
[1750721716990,30.0,2420.2,2420.0,0.7735]
[1750721718898,30.0,2420.0,2419.6,0.8161]
[1750721719072,10.0,2419.7,2419.6,0.8161]
[1750721719266,40.0,2419.7,2419.2,0.8161]
[1750721719498,30.0,2419.4,2419.2,0.8161]
[1750721720499,10.0,2419.3,2419.2,0.8161]
[1750721720712,30.0,2419.6,2419.2,0.8161]
[1750721721027,40.0,2419.3,2419.2,0.8161]
[1750721721193,10.0,2419.3,2419.2,0.8161]
[1750721722050,40.0,2419.2,2419.1,0.14]
[1750721723204,10.0,2419.2,2419.1,0.14]
[1750721723506,40.0,2419.2,2419.1,0.14]
[1750721723706,30.0,2419.2,2419.1,0.09]
[1750721724027,30.0,2420.0,2419.2,0.7587]
[1750721724210,10.0,2419.7,2419.2,0.7587]
[1750721724537,30.0,2419.8,2419.2,0.7587]
[1750721724737,10.28331312,2419.7,2419.2,0.7587]
[1750721724939,30.0,2419.6,2419.2,0.7587]
[1750721726120,0.28331312,2419.7,2419.2,0.7587]
[1750721727356,0.28331312,2419.7,2419.3,0.55]
[1750721727556,0.28331312,2419.7,2419.2,1.913]
[1750721727557,0.28331312,2419.7,2419.5,0.7882]
[1750721728056,30.0,2420.2,2419.5,0.7882]
[1750721728360,10.0,2420.0,2419.5,0.7882]
[1750721728654,10.0,2419.8,2419.5,0.7882]
[1750721728854,14.06191717,2420.8,2419.5,0.7882]
[1750721728855,10.629,2420.7,2419.5,0.7882]
[1750721729020,10.0,2420.4,2419.5,0.7882]
[1750721729219,30.0,2420.1,2419.5,0.7882]
[1750721729458,10.0,2420.5,2419.5,0.7882]
[1750721729668,30.0,2420.2,2419.5,0.7882]
[1750721733969,2.056,2420.6,2419.6,0.55]
[1750721733970,30.0,2420.6,2419.6,0.55]
[1750721734159,30.0,2420.7,2419.9,0.8002]
[1750721734360,30.0,2420.7,2419.7,1.913]
[1750721734361,30.0,2420.6,2420.0,0.55]
[1750721734586,1.913,2421.0,2420.1,0.8002]
[1750721734890,30.0,2420.7,2420.1,0.8002]
[1750721735276,30.0,2421.0,2420.1,0.8002]
[1750721735472,30.0,2420.6,2420.1,0.8002]
[1750721735677,3.8943,2421.0,2420.1,0.8002]
[1750721735678,10.0,2420.9,2420.1,0.8002]
[1750721735845,10.0,2420.7,2420.1,0.8002]
[1750721736282,10.0,2420.9,2420.3,0.8278]
[1750721736485,10.0,2420.7,2420.3,0.8278]
[1750721736994,14.49601285,2421.7,2420.4,0.55]
[1750721736995,30.0,2421.0,2420.4,0.55]
[1750721737287,30.0,2421.6,2420.5,0.55]
[1750721737490,30.0,2421.4,2420.6,0.783]
[1750721737651,30.0,2421.6,2420.6,0.783]
[1750721737847,10.562,2421.7,2420.6,0.783]
[1750721738048,30.0,2421.3,2420.6,0.783]
[1750721741791,30.0,2421.1,2420.6,0.783]
[1750721742097,10.0,2420.9,2420.6,0.783]
[1750721742250,10.0,2421.2,2420.6,0.783]
[1750721742455,10.0,2421.0,2420.6,0.783]
[1750721742656,30.0,2420.9,2420.6,0.783]
[1750721742851,0.40968618,2421.0,2420.6,0.783]
[1750721743052,30.0,2421.8,2420.9,1.3692]
[1750721743294,3.014,2421.7,2421.1,0.55]
[1750721743456,0.14,2421.9,2421.4,0.8192]
[1750721743651,0.14,2421.9,2421.6,0.8192]
[1750721745715,0.14,2421.9,2421.8,1.3692]
[1750721748113,0.14,2421.9,2421.8,0.8192]
[1750721749104,0.14,2421.9,2421.8,1.3692]
[1750721749314,0.14,2421.9,2421.8,1.69732]
[1750721752837,0.14,2421.9,2421.8,5.82648012]
[1750721753040,0.14,2421.9,2421.8,1.69732]
[1750721753914,0.14,2421.9,2421.8,5.82648012]
[1750721754129,0.14,2421.9,2421.8,1.69732]
[1750721754808,0.14,2421.9,2421.8,5.82648012]
[1750721755325,10.0,2422.7,2422.0,0.8229]
[1750721755643,0.14,2422.9,2422.2,1.3729]
[1750721755837,0.14,2422.9,2422.3,7.024]
[1750721756242,0.14,2422.9,2422.8,0.55]
[1750721756441,0.14,2422.9,2422.8,3.2841]
[1750721757724,0.14,2422.9,2422.8,0.8231]
[1750721758236,0.14,2422.9,2422.6,7.023]
[1750721758939,30.0,2422.8,2422.5,7.023]
[1750721759115,0.14,2422.9,2422.5,7.023]
[1750721761370,0.14,2422.9,2421.9,0.7597]
[1750721761371,30.0,2422.6,2421.9,0.7597]
[1750721761675,30.0,2422.6,2422.1,1.91]
[1750721762174,10.0,2422.7,2422.1,2.87917]
[1750721762530,10.8995,2422.9,2422.1,2.87917]
[1750721762728,30.0,2422.6,2422.1,2.87917]
[1750721762945,10.0,2422.3,2421.9,0.7597]
[1750721763146,10.0,2422.7,2421.9,7.7817]
[1750721763349,30.0,2422.6,2421.9,7.7817]
[1750721763669,0.8995,2422.9,2422.0,0.96917]
[1750721763670,10.0,2422.7,2422.0,0.96917]
[1750721763834,30.0,2422.4,2421.9,7.7817]
[1750721764233,10.0,2422.7,2421.9,7.7817]
[1750721764457,10.0,2422.5,2421.9,7.7817]
[1750721764631,30.0,2422.4,2421.9,7.7817]
[1750721765549,0.8995,2422.9,2421.9,8.20793487]
[1750721765749,10.0,2422.5,2421.9,8.20793487]
[1750721766092,10.0,2422.7,2421.9,8.20793487]
[1750721766248,30.0,2422.4,2421.9,7.7817]
[1750721766947,0.14,2422.9,2422.0,4.67865469]
[1750721767134,0.14,2422.9,2422.3,0.8083]
[1750721767330,10.0,2422.7,2422.4,1.91]
[1750721768250,10.0,2422.7,2422.3,0.8083]
[1750721768460,0.14,2422.9,2422.3,7.8293]
[1750721768774,0.14,2422.9,2422.3,8.85823]
[1750721768936,0.14,2422.9,2422.4,0.55]
[1750721769136,0.14,2422.9,2422.3,8.85823]
[1750721769137,0.14,2422.9,2422.6,0.55]
[1750721769331,0.14,2422.9,2422.8,0.55]
[1750721771377,0.14,2422.9,2422.8,1.3314]
[1750721771562,0.14,2422.9,2422.8,1.65554]
[1750721772363,0.14,2422.9,2422.8,5.78299583]
[1750721772590,0.14,2422.9,2422.8,1.65554]
[1750721773205,0.14,2422.9,2422.8,5.78299583]
[1750721774103,0.14,2422.9,2422.4,0.8229]
[1750721775964,0.14,2422.9,2422.7,0.55]
[1750721777005,0.14,2422.9,2422.8,1.91]
[1750721778371,0.14,2422.9,2422.8,3.2829]
[1750721778776,0.14,2422.9,2422.8,7.41035583]
[1750721778976,0.14,2422.9,2422.8,4.43668798]
[1750721779601,0.14,2422.9,2422.8,2.52668798]
[1750721779817,0.14,2422.9,2422.8,14.42935583]
[1750721780291,0.14,2423.9,2423.7,1.3783]
[1750721780492,0.14,2423.9,2423.8,11.69475294]
[1750721780692,0.14,2423.9,2423.8,12.52305294]
[1750721780921,0.14,2424.9,2424.5,0.55]
[1750721781125,0.14,2424.9,2424.6,9.7573]
[1750721781330,0.14,2424.9,2424.6,11.20047739]
[1750721781742,0.14,2424.9,2424.7,7.019]
[1750721782231,0.14,2424.9,2424.3,0.55]
[1750721782434,0.14,2424.9,2424.6,7.019]
[1750721782642,0.14,2424.9,2424.2,0.7944]
[1750721782934,0.14,2424.9,2423.5,7.019]
[1750721782935,0.7843,2424.5,2423.5,7.019]
[1750721783241,0.7843,2424.5,2423.4,0.8209]
[1750721783242,30.0,2424.2,2423.4,0.8209]
[1750721783394,30.0,2424.0,2423.2,1.91]
[1750721783596,10.7843,2424.1,2423.2,1.91]
[1750721783597,30.0,2423.8,2423.2,1.91]
[1750721783802,10.0,2423.7,2423.2,1.91]
[1750721784097,10.0,2423.7,2423.0,7.024]
[1750721784304,10.7582,2423.7,2423.1,0.77975]
[1750721784526,0.7582,2423.7,2423.0,7.024]
[1750721784934,0.41261694,2423.9,2423.1,0.55]
[1750721785112,10.0,2423.9,2423.1,0.55]
[1750721785448,10.0,2423.8,2423.1,0.55]
[1750721785620,0.7582,2424.0,2423.1,0.55]
[1750721785827,10.0,2423.6,2423.0,7.024]
[1750721786009,0.41216238,2423.9,2422.9,0.7735]
[1750721786359,0.7582,2424.0,2423.0,9.493]
[1750721786506,10.0,2423.8,2423.1,1.02665]
[1750721786707,0.7582,2424.0,2423.0,9.493]
[1750721787042,10.0,2423.6,2423.0,9.493]
[1750721787252,10.0,2423.8,2423.0,8.943]
[1750721787451,30.0,2423.4,2422.8,8.942]
[1750721787622,0.7843,2423.7,2422.8,8.942]
[1750721787826,10.0,2423.3,2422.8,8.942]
[1750721788047,0.7843,2423.7,2422.8,9.91734]
[1750721788248,10.0,2423.5,2422.8,9.91734]
[1750721788554,0.7843,2423.7,2422.8,9.91734]
[1750721788741,10.0,2423.3,2422.8,9.91734]
[1750721789053,30.0,2423.2,2422.8,8.942]
[1750721789224,10.7843,2423.7,2422.8,8.942]
[1750721789553,1.911,2423.8,2422.8,8.942]
[1750721789554,0.7843,2423.2,2422.8,8.942]
[1750721790061,30.0,2423.1,2422.8,8.942]
[1750721790225,0.7843,2423.2,2422.8,7.031]
[1750721790425,10.0,2423.0,2422.8,7.031]
[1750721790760,0.7843,2423.2,2422.8,7.031]
[1750721791448,10.0,2423.0,2422.8,7.031]
[1750721791854,0.7843,2423.2,2422.8,7.031]
[1750721792251,30.0,2423.1,2422.8,7.031]
[1750721792462,10.0,2423.0,2422.8,7.031]
[1750721792768,0.7843,2423.2,2422.8,7.031]
[1750721792962,10.0,2423.0,2422.8,7.031]
[1750721793536,10.0,2423.5,2422.8,7.031]
[1750721793537,10.0,2423.6,2422.9,0.7914]
[1750721793727,0.7843,2423.8,2422.9,0.7914]
[1750721793728,30.0,2423.3,2422.9,0.7914]
[1750721794368,30.0,2423.3,2422.8,7.7341]
[1750721795072,10.0,2423.2,2422.8,7.031]
[1750721795241,0.7843,2423.2,2422.8,7.031]
[1750721796666,0.7843,2423.2,2422.2,2.7319]
[1750721796667,10.0,2422.8,2422.2,2.7319]
[1750721796861,30.776,2422.7,2422.2,9.7559]
[1750721797182,30.776,2422.7,2421.9,0.8199]
[1750721797183,30.0,2422.3,2421.9,0.8199]
[1750721797381,10.0,2422.4,2421.6,9.918]
[1750721797546,10.0,2422.5,2421.6,17.7495]
[1750721797874,30.0,2422.2,2421.6,7.8325]
[1750721798081,30.7843,2422.2,2421.6,7.8325]
[1750721798244,30.7843,2422.2,2421.4,8.94]
[1750721800600,30.7843,2422.2,2421.4,1.912]
[1750721800754,31.20584827,2422.2,2421.4,1.912]
[1750721800938,31.20584827,2422.2,2421.1,0.14]
[1750721800939,41.17554827,2422.2,2421.1,0.14]
[1750721801140,10.0,2421.9,2421.1,0.14]
[1750721801444,11.912,2421.8,2421.1,0.14]
[1750721801644,0.754,2422.1,2421.1,0.14]
[1750721801895,0.42154827,2422.2,2421.2,4.68007727]
[1750721802050,0.42154827,2422.2,2421.3,0.7819]
[1750721802364,10.0,2422.2,2421.6,0.7819]
[1750721802565,30.0,2422.1,2421.6,0.7819]
[1750721802739,30.0,2421.9,2421.4,7.032]
[1750721802944,1.07843,2422.2,2421.4,7.032]
[1750721803141,10.0,2421.8,2421.3,0.7819]
[1750721803360,30.0,2421.7,2421.3,0.7819]
[1750721803566,0.7843,2421.9,2421.3,0.7819]
[1750721803774,10.0,2421.7,2421.3,0.7819]
[1750721806472,10.0,2421.7,2420.9,0.7717]
[1750721806689,10.0,2421.3,2420.9,0.7717]
[1750721806850,1.0,2421.6,2420.9,0.7717]
[1750721807051,10.0,2421.2,2420.5,0.7617]
[1750721807360,10.0,2421.1,2420.5,0.7617]
[1750721807662,0.40633062,2421.1,2420.5,0.7617]
[1750721807845,30.0,2421.2,2420.3,0.7617]
[1750721808044,16.04309863,2421.3,2420.3,0.7617]
[1750721808045,10.0,2420.9,2420.3,0.7617]
[1750721808248,0.7843,2421.1,2420.3,0.7617]
[1750721808456,10.0,2421.1,2420.4,0.55]
[1750721808669,30.0,2421.2,2420.4,0.55]
[1750721808870,4.1913,2421.1,2420.4,0.55]
[1750721809070,4.33446092,2422.7,2420.8,0.55]
[1750721809071,10.0,2421.5,2420.8,0.55]
[1750721809387,2.6973,2421.7,2420.7,0.55]
[1750721809560,40.0,2421.9,2420.8,0.8204]
[1750721809768,30.0,2421.9,2420.8,0.8204]
[1750721810158,33.26973,2421.9,2420.9,0.55]
[1750721810360,10.0,2421.8,2421.1,0.55]
[1750721811053,30.0,2421.8,2421.1,0.55]
[1750721812890,30.0,2421.8,2421.0,0.7801]
[1750721813714,10.0,2421.9,2421.0,0.7801]
[1750721813715,30.0,2421.6,2421.0,0.7801]
[1750721813875,11.911,2421.9,2421.1,0.26931]
[1750721814305,10.0,2421.7,2421.1,0.26931]
[1750721814508,10.0,2421.7,2421.0,0.7801]
[1750721815206,1.911,2421.9,2421.1,0.55]
[1750721815769,10.0,2421.7,2421.1,0.55]
[1750721816398,1.911,2421.9,2421.1,0.55]
[1750721816705,1.26953,2421.8,2421.1,0.55]
[1750721817084,40.0,2421.7,2421.0,0.7801]
[1750721817319,10.0,2421.5,2421.0,0.7801]
[1750721817502,30.0,2421.2,2420.7,0.8285]
[1750721817702,30.0,2421.2,2420.3,1.911]
[1750721817703,30.0,2421.1,2420.3,1.911]
[1750721817885,13.8091,2421.0,2420.4,0.8285]
[1750721818088,10.0,2421.0,2420.4,0.8285]
[1750721818395,30.0,2420.9,2420.4,0.8285]
[1750721818596,7.032,2421.3,2420.4,0.8285]